{"text_format":"3","workbook":"xlsx","n_sheets":4,"sheets":["Inicio","Presupuesto de la boda","Ropa-Recepción-Música-Fotos","Decoración-Flores-Regalos-Viaje"],"not_rendered":{"charts":1,"defined_names":22},"read":"whole","date_system":"1900"}

{"sheet":"Inicio","index":0,"n_rows":7,"n_cols":2,"rows_kept":7}
[null,"ACERCA DE ESTA PLANTILLA"]
[null,"Usa esta plantilla para realizar un seguimiento de los gastos de tu boda."]
[null,"Escribe los costos estimados y real ocasionados en varias categorías en hojas de cálculo separadas."]
[null,"El resumen del presupuesto para la boda y el gráfico se actualizan automáticamente."]
[null,"Nota: "]
[null,"Se facilitan instrucciones adicionales en la columna A de cada hoja de cálculo. Este texto se ocultó a propósito. Para eliminar el texto, selecciona la columna A y, a continuación, ELIMINAR. Para mostrar el texto, selecciona la columna A y, a continuación, cambia el color de fuente."]
[null,"Para obtener más información sobre las tablas, presiona las teclas MAYÚS y F10 dentro de una tabla, selecciona la opción TABLA y, a continuación, TEXTO ALTERNATIVO."]

{"sheet":"Presupuesto de la boda","index":1,"n_rows":19,"n_cols":6,"rows_kept":19,"merged":[[2,2,4,5],[18,2,42,5]]}
["Crea el presupuesto de la boda en esta hoja de cálculo. Escribe los detalles en las tablas de las hojas de cálculo Ropa-Recepción-Música-Fotos y Decoración-Flores-Regalos-Viaje para actualizar el resumen y el gráfico en la hoja de cálculo actual. Encontrarás instrucciones útiles sobre cómo usar esta hoja de cálculo en las celdas de esta columna. La etiqueta Fecha de la boda se encuentra en la celda C1.",null,"Fecha de la boda:"]
["Escribe la fecha de la boda en la celda C2. Los días restantes se calculan de forma automática en la celda E2.",null,{"$f":"TODAY()+365","v":"2019-12-04"},"Días restantes:",{"$f":"C2-TODAY()","v":365}]
["El título de esta hoja de cálculo se encuentra en la celda C3. La instrucción siguiente se encuentra en la celda A6.",null,"Resumen del presupuesto para la boda"]
[]
[]
["La tabla de resumen del presupuesto, que empieza en la celda C6, se actualiza automáticamente. La instrucción siguiente se encuentra en la celda A19.",null,"CATEGORÍA","ESTIMADOS","REAL","DIFERENCIA"]
[null,null,"Ropa",{"$f":"Total_Ropa_estimado","v":{"v":9490,"d":"9,490.00"}},{"$f":"Total_Ropa_real","v":{"v":9770,"d":"9,770.00"}},{"$f":"ResumenDelPresupuesto[[#This Row],[ESTIMADOS]]-ResumenDelPresupuesto[[#This Row],[REAL]]","v":{"v":-280,"d":"-280.00"}}]
[null,null,"Banquete",{"$f":"Total_Recepción_estimado","v":{"v":1050,"d":"1,050.00"}},{"$f":"Total_Recepción_real","v":{"v":928,"d":"928.00"}},{"$f":"ResumenDelPresupuesto[[#This Row],[ESTIMADOS]]-ResumenDelPresupuesto[[#This Row],[REAL]]","v":{"v":122,"d":"122.00"}}]
[null,null,"Música",{"$f":"Total_Música_entretenimiento_estimado","v":{"v":600,"d":"600.00"}},{"$f":"Total_Música_entretenimiento_real","v":{"v":400,"d":"400.00"}},{"$f":"ResumenDelPresupuesto[[#This Row],[ESTIMADOS]]-ResumenDelPresupuesto[[#This Row],[REAL]]","v":{"v":200,"d":"200.00"}}]
[null,null,"Impresión",{"$f":"Total_Impresión_Artículos_De_Papelería_estimado","v":{"v":935,"d":"935.00"}},{"$f":"Total_Impresión_Artículos_De_Papelería_real","v":{"v":870,"d":"870.00"}},{"$f":"ResumenDelPresupuesto[[#This Row],[ESTIMADOS]]-ResumenDelPresupuesto[[#This Row],[REAL]]","v":{"v":65,"d":"65.00"}}]
[null,null,"Fotografía",{"$f":"Total_Fotografía_estimado","v":{"v":1625,"d":"1,625.00"}},{"$f":"Total_Fotografía_real","v":{"v":1575,"d":"1,575.00"}},{"$f":"ResumenDelPresupuesto[[#This Row],[ESTIMADOS]]-ResumenDelPresupuesto[[#This Row],[REAL]]","v":{"v":50,"d":"50.00"}}]
[null,null,"Decoración",{"$f":"Total_Decoración_estimado","v":{"v":700,"d":"700.00"}},{"$f":"Total_Decoración_real","v":{"v":720,"d":"720.00"}},{"$f":"ResumenDelPresupuesto[[#This Row],[ESTIMADOS]]-ResumenDelPresupuesto[[#This Row],[REAL]]","v":{"v":-20,"d":"-20.00"}}]
[null,null,"Flores",{"$f":"Total_Flores_estimado","v":{"v":900,"d":"900.00"}},{"$f":"Total_Flores_real","v":{"v":850,"d":"850.00"}},{"$f":"ResumenDelPresupuesto[[#This Row],[ESTIMADOS]]-ResumenDelPresupuesto[[#This Row],[REAL]]","v":{"v":50,"d":"50.00"}}]
[null,null,"Regalos",{"$f":"Total_Regalos_estimado","v":{"v":1345,"d":"1,345.00"}},{"$f":"Total_Regalos_real","v":{"v":1075,"d":"1,075.00"}},{"$f":"ResumenDelPresupuesto[[#This Row],[ESTIMADOS]]-ResumenDelPresupuesto[[#This Row],[REAL]]","v":{"v":270,"d":"270.00"}}]
[null,null,"Viajes",{"$f":"Total_Transporte_Viajes_estimado","v":{"v":100,"d":"100.00"}},{"$f":"Total_Transporte_Viajes_real","v":{"v":165,"d":"165.00"}},{"$f":"ResumenDelPresupuesto[[#This Row],[ESTIMADOS]]-ResumenDelPresupuesto[[#This Row],[REAL]]","v":{"v":-65,"d":"-65.00"}}]
[null,null,"Otros",{"$f":"Total_Otros_Gastos_estimado","v":{"v":885,"d":"885.00"}},{"$f":"Total_Otros_Gastos_real","v":{"v":1021,"d":"1,021.00"}},{"$f":"ResumenDelPresupuesto[[#This Row],[ESTIMADOS]]-ResumenDelPresupuesto[[#This Row],[REAL]]","v":{"v":-136,"d":"-136.00"}}]
[null,null,"Gastos totales",{"$f":"SUBTOTAL(109,ResumenDelPresupuesto[ESTIMADOS])","v":{"v":17630,"d":"17,630.00"}},{"$f":"SUBTOTAL(109,ResumenDelPresupuesto[REAL])","v":{"v":17374,"d":"17,374.00"}},{"$f":"SUBTOTAL(109,ResumenDelPresupuesto[DIFERENCIA])","v":{"v":256,"d":"256.00"}}]
[]
["El gráfico circular de la celda C19 se actualiza automáticamente.",null,"El gráfico circular en el que se muestra el porcentaje de gastos de cada categoría se encuentra en esta celda."]

{"sheet":"Ropa-Recepción-Música-Fotos","index":2,"n_rows":56,"n_cols":6,"rows_kept":56,"merged":[[16,1,16,4],[28,1,28,4],[29,1,29,4],[35,1,35,4],[48,1,48,4]]}
["Escriba los costos estimados y real de cada categoría en las respectivas tablas de esta hoja de cálculo. La diferencia se calcula automáticamente. La etiqueta Ropa se encuentra en la celda de la derecha. Encontrarás instrucciones útiles sobre cómo usar esta hoja de cálculo en las celdas de esta columna. Presiona la tecla de flecha abajo para empezar.","Ropa",{"$nulls":3}," "]
[" Escribe los detalles en la tabla Ropa que comienza en la celda de la derecha. La instrucción siguiente se encuentra en la celda A18.","CATEGORÍA","ESTIMADOS","REAL","DIFERENCIA"," "]
[null,"Anillos de compromiso",{"v":1500,"d":"1,500.00"},{"v":1500,"d":"1,500.00"},{"$f":"'Ropa-Recepción-Música-Fotos'!$C3-'Ropa-Recepción-Música-Fotos'!$D3","v":{"v":0,"d":"0.00"}}]
[null,"Anillo del futuro cónyuge 1",{"v":2000,"d":"2,000.00"},{"v":2300,"d":"2,300.00"},{"$f":"'Ropa-Recepción-Música-Fotos'!$C4-'Ropa-Recepción-Música-Fotos'!$D4","v":{"v":-300,"d":"-300.00 "}}]
[null,"Vestido o esmoquin del futuro cónyuge 1",{"v":3000,"d":"3,000.00"},{"v":2750,"d":"2,750.00"},{"$f":"'Ropa-Recepción-Música-Fotos'!$C5-'Ropa-Recepción-Música-Fotos'!$D5","v":{"v":250,"d":"250.00"}}]
[null,"Velo o tocado del futuro cónyuge 1",{"v":500,"d":"500.00"},{"v":500,"d":"500.00"},{"$f":"'Ropa-Recepción-Música-Fotos'!$C6-'Ropa-Recepción-Música-Fotos'!$D6","v":{"v":0,"d":"0.00"}}]
[null,"Zapatos del futuro cónyuge 1",{"v":350,"d":"350.00"},{"v":300,"d":"300.00"},{"$f":"'Ropa-Recepción-Música-Fotos'!$C7-'Ropa-Recepción-Música-Fotos'!$D7","v":{"v":50,"d":"50.00"}}]
[null,"Joyas del futuro cónyuge 1",{"v":400,"d":"400.00"},{"v":550,"d":"550.00"},{"$f":"'Ropa-Recepción-Música-Fotos'!$C8-'Ropa-Recepción-Música-Fotos'!$D8","v":{"v":-150,"d":"-150.00 "}}]
[null,"Medias del futuro cónyuge 1",{"v":20,"d":"20.00"},{"v":20,"d":"20.00"},{"$f":"'Ropa-Recepción-Música-Fotos'!$C9-'Ropa-Recepción-Música-Fotos'!$D9","v":{"v":0,"d":"0.00"}}]
[null,"Anillo del futuro cónyuge 2",{"v":300,"d":"300.00"},{"v":250,"d":"250.00"},{"$f":"'Ropa-Recepción-Música-Fotos'!$C10-'Ropa-Recepción-Música-Fotos'!$D10","v":{"v":50,"d":"50.00"}}]
[null,"Vestido o esmoquin del futuro cónyuge 2",{"v":300,"d":"300.00"},{"v":350,"d":"350.00"},{"$f":"'Ropa-Recepción-Música-Fotos'!$C11-'Ropa-Recepción-Música-Fotos'!$D11","v":{"v":-50,"d":"-50.00 "}}]
[null,"Velo o tocado del futuro cónyuge 2",{"v":500,"d":"500.00"},{"v":500,"d":"500.00"},{"$f":"'Ropa-Recepción-Música-Fotos'!$C12-'Ropa-Recepción-Música-Fotos'!$D12","v":{"v":0,"d":"0.00"}}]
[null,"Zapatos del futuro cónyuge 2",{"v":200,"d":"200.00"},{"v":175,"d":"175.00"},{"$f":"'Ropa-Recepción-Música-Fotos'!$C13-'Ropa-Recepción-Música-Fotos'!$D13","v":{"v":25,"d":"25.00"}}]
[null,"Joyas del futuro cónyuge 2",{"v":400,"d":"400.00"},{"v":550,"d":"550.00"},{"$f":"'Ropa-Recepción-Música-Fotos'!$C14-'Ropa-Recepción-Música-Fotos'!$D14","v":{"v":-150,"d":"-150.00 "}}]
[null,"Medias del futuro cónyuge 2",{"v":20,"d":"20.00"},{"v":25,"d":"25.00"},{"$f":"'Ropa-Recepción-Música-Fotos'!$C15-'Ropa-Recepción-Música-Fotos'!$D15","v":{"v":-5,"d":"-5.00 "}}]
[null,"Total de la ropa",{"$f":"SUBTOTAL(109,Ropa[ESTIMADOS])","v":{"v":9490,"d":"9,490.00"}},{"$f":"SUBTOTAL(109,Ropa[REAL])","v":{"v":9770,"d":"9,770.00"}},{"$f":"SUBTOTAL(109,Ropa[DIFERENCIA])","v":{"v":-280,"d":"-280.00 "}}]
[]
["La etiqueta Recepción se encuentra en la celda de la derecha.","Recepción*"]
["Escribe los costos de recepción, sin incluir los del entretenimiento y la decoración, en la tabla que empieza en la celda de la derecha. La instrucción siguiente se encuentra en la celda A31.","CATEGORÍA","ESTIMADOS","REAL","DIFERENCIA"]
[null,"Gastos de habitaciones o salas",{"v":200,"d":"200.00"},{"v":150,"d":"150.00"},{"$f":"'Ropa-Recepción-Música-Fotos'!$C20-'Ropa-Recepción-Música-Fotos'!$D20","v":{"v":50,"d":"50.00"}}]
[null,"Mesas y sillas",{"v":100,"d":"100.00"},{"v":50,"d":"50.00"},{"$f":"'Ropa-Recepción-Música-Fotos'!$C21-'Ropa-Recepción-Música-Fotos'!$D21","v":{"v":50,"d":"50.00"}}]
[null,"Comida",{"v":0,"d":"0.00"},{"v":0,"d":"0.00"},{"$f":"'Ropa-Recepción-Música-Fotos'!$C22-'Ropa-Recepción-Música-Fotos'!$D22","v":{"v":0,"d":"0.00"}}]
[null,"Bebidas",{"v":0,"d":"0.00"},{"v":0,"d":"0.00"},{"$f":"'Ropa-Recepción-Música-Fotos'!$C23-'Ropa-Recepción-Música-Fotos'!$D23","v":{"v":0,"d":"0.00"}}]
[null,"Mantelería",{"v":0,"d":"0.00"},{"v":0,"d":"0.00"},{"$f":"'Ropa-Recepción-Música-Fotos'!$C24-'Ropa-Recepción-Música-Fotos'!$D24","v":{"v":0,"d":"0.00"}}]
[null,"Pastel",{"v":700,"d":"700.00"},{"v":700,"d":"700.00"},{"$f":"'Ropa-Recepción-Música-Fotos'!$C25-'Ropa-Recepción-Música-Fotos'!$D25","v":{"v":0,"d":"0.00"}}]
[null,"Suvenires",{"v":50,"d":"50.00"},{"v":28,"d":"28.00"},{"$f":"'Ropa-Recepción-Música-Fotos'!$C26-'Ropa-Recepción-Música-Fotos'!$D26","v":{"v":22,"d":"22.00"}}]
[null,"Personal y compensaciones",{"v":0,"d":"0.00"},{"v":0,"d":"0.00"},{"$f":"'Ropa-Recepción-Música-Fotos'!$C27-'Ropa-Recepción-Música-Fotos'!$D27","v":{"v":0,"d":"0.00"}}]
[null,"Total de la recepción",{"$f":"SUBTOTAL(109,Recepción[ESTIMADOS])","v":{"v":1050,"d":"1,050.00"}},{"$f":"SUBTOTAL(109,Recepción[REAL])","v":{"v":928,"d":"928.00"}},{"$f":"SUBTOTAL(109,Recepción[DIFERENCIA])","v":{"v":122,"d":"122.00"}}]
[null,"* No se incluye la decoración ni el entretenimiento"]
[]
["La etiqueta Música y entretenimiento se encuentra en la celda de la derecha.","Música y entretenimiento"]
["Escribe la información en la tabla Música que comienza en la celda de la derecha. La instrucción siguiente se encuentra en la celda A37.","CATEGORÍA","ESTIMADOS","REAL","DIFERENCIA"]
[null,"Músicos para la ceremonia",{"v":400,"d":"400.00"},{"v":400,"d":"400.00"},{"$f":"'Ropa-Recepción-Música-Fotos'!$C33-'Ropa-Recepción-Música-Fotos'!$D33","v":{"v":0,"d":"0.00"}}]
[null,"Banda o DJ para la recepción",{"v":200,"d":"200.00"},{"v":0,"d":"0.00"},{"$f":"'Ropa-Recepción-Música-Fotos'!$C34-'Ropa-Recepción-Música-Fotos'!$D34","v":{"v":200,"d":"200.00"}}]
[null,"Total de la música y el entretenimiento",{"$f":"SUBTOTAL(109,Música[ESTIMADOS])","v":{"v":600,"d":"600.00"}},{"$f":"SUBTOTAL(109,Música[REAL])","v":{"v":400,"d":"400.00"}},{"$f":"SUBTOTAL(109,Música[DIFERENCIA])","v":{"v":200,"d":"200.00"}}]
[]
["La etiqueta Impresión o Material de papelería se encuentra en la celda de la derecha.","Impresión o material de papelería"]
["Escriba la información en la tabla Impresión que comienza en la celda de la derecha. La instrucción siguiente se encuentra en la celda A50.","CATEGORÍA","ESTIMADOS","REAL","DIFERENCIA"]
[null,"Invitaciones",{"v":500,"d":"500.00"},{"v":450,"d":"450.00"},{"$f":"'Ropa-Recepción-Música-Fotos'!$C39-'Ropa-Recepción-Música-Fotos'!$D39","v":{"v":50,"d":"50.00"}}]
[null,"Anuncios",{"v":200,"d":"200.00"},{"v":175,"d":"175.00"},{"$f":"'Ropa-Recepción-Música-Fotos'!$C40-'Ropa-Recepción-Música-Fotos'!$D40","v":{"v":25,"d":"25.00"}}]
[null,"Tarjetas de agradecimiento",{"v":100,"d":"100.00"},{"v":100,"d":"100.00"},{"$f":"'Ropa-Recepción-Música-Fotos'!$C41-'Ropa-Recepción-Música-Fotos'!$D41","v":{"v":0,"d":"0.00"}}]
[null,"Artículos de papelería personales",{"v":0,"d":"0.00"},{"v":0,"d":"0.00"},{"$f":"'Ropa-Recepción-Música-Fotos'!$C42-'Ropa-Recepción-Música-Fotos'!$D42","v":{"v":0,"d":"0.00"}}]
[null,"Libro de invitados",{"v":25,"d":"25.00"},{"v":25,"d":"25.00"},{"$f":"'Ropa-Recepción-Música-Fotos'!$C43-'Ropa-Recepción-Música-Fotos'!$D43","v":{"v":0,"d":"0.00"}}]
[null,"Programas",{"v":75,"d":"75.00"},{"v":80,"d":"80.00"},{"$f":"'Ropa-Recepción-Música-Fotos'!$C44-'Ropa-Recepción-Música-Fotos'!$D44","v":{"v":-5,"d":"-5.00 "}}]
[null,"Servilletas para la recepción",{"v":35,"d":"35.00"},{"v":40,"d":"40.00"},{"$f":"'Ropa-Recepción-Música-Fotos'!$C45-'Ropa-Recepción-Música-Fotos'!$D45","v":{"v":-5,"d":"-5.00 "}}]
[null,"Cajitas de cerillas",{"v":0,"d":"0.00"},{"v":0,"d":"0.00"},{"$f":"'Ropa-Recepción-Música-Fotos'!$C46-'Ropa-Recepción-Música-Fotos'!$D46","v":{"v":0,"d":"0.00"}}]
[null,"Caligrafía",{"v":0,"d":"0.00"},{"v":0,"d":"0.00"},{"$f":"'Ropa-Recepción-Música-Fotos'!$C47-'Ropa-Recepción-Música-Fotos'!$D47","v":{"v":0,"d":"0.00"}}]
[null,"Total de la impresión o el material de papelería",{"$f":"SUBTOTAL(109,Impresión[ESTIMADOS])","v":{"v":935,"d":"935.00"}},{"$f":"SUBTOTAL(109,Impresión[REAL])","v":{"v":870,"d":"870.00"}},{"$f":"SUBTOTAL(109,Impresión[DIFERENCIA])","v":{"v":65,"d":"65.00"}}]
[]
["La etiqueta Fotografía se encuentra en la celda de la derecha.","Fotografía"]
["Escribe la información en la tabla Fotografía que comienza en la celda de la derecha.","CATEGORÍA","ESTIMADOS","REAL","DIFERENCIA"]
[null,"Formales",{"v":1300,"d":"1,300.00"},{"v":1300,"d":"1,300.00"},{"$f":"'Ropa-Recepción-Música-Fotos'!$C52-'Ropa-Recepción-Música-Fotos'!$D52","v":{"v":0,"d":"0.00"}}]
[null,"Impresiones adicionales",{"v":25,"d":"25.00"},{"v":25,"d":"25.00"},{"$f":"'Ropa-Recepción-Música-Fotos'!$C53-'Ropa-Recepción-Música-Fotos'!$D53","v":{"v":0,"d":"0.00"}}]
[null,"Álbumes de fotos",{"v":100,"d":"100.00"},{"v":100,"d":"100.00"},{"$f":"'Ropa-Recepción-Música-Fotos'!$C54-'Ropa-Recepción-Música-Fotos'!$D54","v":{"v":0,"d":"0.00"}}]
[null,"Grabación",{"v":200,"d":"200.00"},{"v":150,"d":"150.00"},{"$f":"'Ropa-Recepción-Música-Fotos'!$C55-'Ropa-Recepción-Música-Fotos'!$D55","v":{"v":50,"d":"50.00"}}]
[null,"Total de la fotografía",{"$f":"SUBTOTAL(109,Fotografía[ESTIMADOS])","v":{"v":1625,"d":"1,625.00"}},{"$f":"SUBTOTAL(109,Fotografía[REAL])","v":{"v":1575,"d":"1,575.00"}},{"$f":"SUBTOTAL(109,Fotografía[DIFERENCIA])","v":{"v":50,"d":"50.00"}}]

{"sheet":"Decoración-Flores-Regalos-Viaje","index":3,"n_rows":48,"n_cols":5,"rows_kept":48,"merged":[[8,1,8,4],[9,1,9,4],[18,1,18,4],[27,1,27,4],[34,1,34,4]]}
["Escriba los costos estimados y real de cada categoría en las respectivas tablas de esta hoja de cálculo. La diferencia se calcula automáticamente. La etiqueta Decoración se encuentra en la celda de la derecha. Encontrarás instrucciones útiles sobre cómo usar esta hoja de cálculo en las celdas de esta columna. Presiona la tecla de flecha abajo para empezar.","Decoración*"]
["Escribe los costos de la decoración, sin incluir los de las flores, en la tabla que empieza en la celda de la derecha. La instrucción siguiente se encuentra en la celda A11.","CATEGORÍA","ESTIMADOS","REAL","DIFERENCIA"]
[null,"Lazos para las sillas",{"v":0,"d":"0.00"},{"v":0,"d":"0.00"},{"$f":"'Decoración-Flores-Regalos-Viaje'!$C3-'Decoración-Flores-Regalos-Viaje'!$D3","v":{"v":0,"d":"0.00"}}]
[null,"Centros de mesa",{"v":300,"d":"300.00"},{"v":320,"d":"320.00"},{"$f":"'Decoración-Flores-Regalos-Viaje'!$C4-'Decoración-Flores-Regalos-Viaje'!$D4","v":{"v":-20,"d":"-20.00 "}}]
[null,"Velas",{"v":100,"d":"100.00"},{"v":75,"d":"75.00"},{"$f":"'Decoración-Flores-Regalos-Viaje'!$C5-'Decoración-Flores-Regalos-Viaje'!$D5","v":{"v":25,"d":"25.00"}}]
[null,"Iluminación",{"v":100,"d":"100.00"},{"v":75,"d":"75.00"},{"$f":"'Decoración-Flores-Regalos-Viaje'!$C6-'Decoración-Flores-Regalos-Viaje'!$D6","v":{"v":25,"d":"25.00"}}]
[null,"Globos",{"v":200,"d":"200.00"},{"v":250,"d":"250.00"},{"$f":"'Decoración-Flores-Regalos-Viaje'!$C7-'Decoración-Flores-Regalos-Viaje'!$D7","v":{"v":-50,"d":"-50.00 "}}]
[null,"Total de la decoración",{"$f":"SUBTOTAL(109,Decoración[ESTIMADOS])","v":{"v":700,"d":"700.00"}},{"$f":"SUBTOTAL(109,Decoración[REAL])","v":{"v":720,"d":"720.00"}},{"$f":"SUBTOTAL(109,Decoración[DIFERENCIA])","v":{"v":-20,"d":"-20.00 "}}]
[null,"* No se incluyen las flores"]
[]
["La etiqueta Flores se encuentra en la celda de la derecha.","Flores"]
["Escribe la información en la tabla Flores que comienza en la celda de la derecha. La instrucción siguiente se encuentra en la celda A20.","CATEGORÍA","ESTIMADOS","REAL","DIFERENCIA"]
[null,"Ramos",{"v":500,"d":"500.00"},{"v":450,"d":"450.00"},{"$f":"'Decoración-Flores-Regalos-Viaje'!$C13-'Decoración-Flores-Regalos-Viaje'!$D13","v":{"v":50,"d":"50.00"}}]
[null,"Flores para el ojal",{"v":0,"d":"0.00"},{"v":0,"d":"0.00"},{"$f":"'Decoración-Flores-Regalos-Viaje'!$C14-'Decoración-Flores-Regalos-Viaje'!$D14","v":{"v":0,"d":"0.00"}}]
[null,"Ramilletes",{"v":0,"d":"0.00"},{"v":0,"d":"0.00"},{"$f":"'Decoración-Flores-Regalos-Viaje'!$C15-'Decoración-Flores-Regalos-Viaje'!$D15","v":{"v":0,"d":"0.00"}}]
[null,"Ceremonia",{"v":400,"d":"400.00"},{"v":400,"d":"400.00"},{"$f":"'Decoración-Flores-Regalos-Viaje'!$C16-'Decoración-Flores-Regalos-Viaje'!$D16","v":{"v":0,"d":"0.00"}}]
[null,"Banquete",{"v":0,"d":"0.00"},{"v":0,"d":"0.00"},{"$f":"'Decoración-Flores-Regalos-Viaje'!$C17-'Decoración-Flores-Regalos-Viaje'!$D17","v":{"v":0,"d":"0.00"}}]
[null,"Total de las flores",{"$f":"SUBTOTAL(109,Flores[ESTIMADOS])","v":{"v":900,"d":"900.00"}},{"$f":"SUBTOTAL(109,Flores[REAL])","v":{"v":850,"d":"850.00"}},{"$f":"SUBTOTAL(109,Flores[DIFERENCIA])","v":{"v":50,"d":"50.00"}}]
[]
["La etiqueta Regalos se encuentra en la celda de la derecha.","Regalos"]
["Escribe la información en la tabla Regalos que comienza en la celda de la derecha. La instrucción siguiente se encuentra en la celda A29.","CATEGORÍA","ESTIMADOS","REAL","DIFERENCIA"]
[null,"Asistentes",{"v":1000,"d":"1,000.00"},{"v":400,"d":"400.00"},{"$f":"'Decoración-Flores-Regalos-Viaje'!$C22-'Decoración-Flores-Regalos-Viaje'!$D22","v":{"v":600,"d":"600.00"}}]
[null,"Futuro cónyuge 1",{"v":150,"d":"150.00"},{"v":200,"d":"200.00"},{"$f":"'Decoración-Flores-Regalos-Viaje'!$C23-'Decoración-Flores-Regalos-Viaje'!$D23","v":{"v":-50,"d":"-50.00 "}}]
[null,"Futuro cónyuge 2",{"v":150,"d":"150.00"},{"v":200,"d":"200.00"},{"$f":"'Decoración-Flores-Regalos-Viaje'!$C24-'Decoración-Flores-Regalos-Viaje'!$D24","v":{"v":-50,"d":"-50.00 "}}]
[null,"Padres",{"v":25,"d":"25.00"},{"v":25,"d":"25.00"},{"$f":"'Decoración-Flores-Regalos-Viaje'!$C25-'Decoración-Flores-Regalos-Viaje'!$D25","v":{"v":0,"d":"0.00"}}]
[null,"Lectores y otros participantes",{"v":20,"d":"20.00"},{"v":250,"d":"250.00"},{"$f":"'Decoración-Flores-Regalos-Viaje'!$C26-'Decoración-Flores-Regalos-Viaje'!$D26","v":{"v":-230,"d":"-230.00 "}}]
[null,"Total de los regalos",{"$f":"SUBTOTAL(109,Regalos[ESTIMADOS])","v":{"v":1345,"d":"1,345.00"}},{"$f":"SUBTOTAL(109,Regalos[REAL])","v":{"v":1075,"d":"1,075.00"}},{"$f":"SUBTOTAL(109,Regalos[DIFERENCIA])","v":{"v":270,"d":"270.00"}}]
[]
["La etiqueta Viajes y Transporte se encuentra en la celda de la derecha.","Viajes y transporte"]
["Escribe los detalles en la tabla Viajes que comienza en la celda de la derecha. La instrucción siguiente se encuentra en la celda A36.","CATEGORÍA","ESTIMADOS","REAL","DIFERENCIA"]
[null,"Limusinas/carros",{"v":100,"d":"100.00"},{"v":125,"d":"125.00"},{"$f":"'Decoración-Flores-Regalos-Viaje'!$C31-'Decoración-Flores-Regalos-Viaje'!$D31","v":{"v":-25,"d":"-25.00 "}}]
[null,"Estacionamiento",{"v":0,"d":"0.00"},{"v":40,"d":"40.00"},{"$f":"'Decoración-Flores-Regalos-Viaje'!$C32-'Decoración-Flores-Regalos-Viaje'!$D32","v":{"v":-40,"d":"-40.00 "}}]
[null,"Taxis",{"v":0,"d":"0.00"},{"v":0,"d":"0.00"},{"$f":"'Decoración-Flores-Regalos-Viaje'!$C33-'Decoración-Flores-Regalos-Viaje'!$D33","v":{"v":0,"d":"0.00"}}]
[null,"Total de los viajes y el transporte",{"$f":"SUBTOTAL(109,Viajes[ESTIMADOS])","v":{"v":100,"d":"100.00"}},{"$f":"SUBTOTAL(109,Viajes[REAL])","v":{"v":165,"d":"165.00"}},{"$f":"SUBTOTAL(109,Viajes[DIFERENCIA])","v":{"v":-65,"d":"-65.00 "}}]
[]
["La etiqueta Otros gastos se encuentra en la celda de la derecha.","Otros gastos"]
["Escribe los detalles en la tabla Otros gastos que comienza en la celda de la derecha.","CATEGORÍA","ESTIMADOS","REAL","DIFERENCIA"]
[null,"Oficiante",{"v":0,"d":"0.00"},{"v":0,"d":"0.00"},{"$f":"'Decoración-Flores-Regalos-Viaje'!$C38-'Decoración-Flores-Regalos-Viaje'!$D38","v":{"v":0,"d":"0.00"}}]
[null,"Cargo de la iglesia/establecimiento para la ceremonia",{"v":40,"d":"40.00"},{"v":55,"d":"55.00"},{"$f":"'Decoración-Flores-Regalos-Viaje'!$C39-'Decoración-Flores-Regalos-Viaje'!$D39","v":{"v":-15,"d":"-15.00 "}}]
[null,"Coordinador de la boda",{"v":0,"d":"0.00"},{"v":0,"d":"0.00"},{"$f":"'Decoración-Flores-Regalos-Viaje'!$C40-'Decoración-Flores-Regalos-Viaje'!$D40","v":{"v":0,"d":"0.00"}}]
[null,"Cena de ensayo",{"v":450,"d":"450.00"},{"v":450,"d":"450.00"},{"$f":"'Decoración-Flores-Regalos-Viaje'!$C41-'Decoración-Flores-Regalos-Viaje'!$D41","v":{"v":0,"d":"0.00"}}]
[null,"Fiesta de compromiso",{"v":20,"d":"20.00"},{"v":50,"d":"50.00"},{"$f":"'Decoración-Flores-Regalos-Viaje'!$C42-'Decoración-Flores-Regalos-Viaje'!$D42","v":{"v":-30,"d":"-30.00 "}}]
[null,"Fiestas",{"v":30,"d":"30.00"},{"v":20,"d":"20.00"},{"$f":"'Decoración-Flores-Regalos-Viaje'!$C43-'Decoración-Flores-Regalos-Viaje'!$D43","v":{"v":10,"d":"10.00"}}]
[null,"Peluquería",{"v":45,"d":"45.00"},{"v":46,"d":"46.00"},{"$f":"'Decoración-Flores-Regalos-Viaje'!$C44-'Decoración-Flores-Regalos-Viaje'!$D44","v":{"v":-1,"d":"-1.00 "}}]
[null,"Despedidas de soltero",{"v":0,"d":"0.00"},{"v":0,"d":"0.00"},{"$f":"'Decoración-Flores-Regalos-Viaje'!$C45-'Decoración-Flores-Regalos-Viaje'!$D45","v":{"v":0,"d":"0.00"}}]
[null,"Brunch",{"v":300,"d":"300.00"},{"v":400,"d":"400.00"},{"$f":"'Decoración-Flores-Regalos-Viaje'!$C46-'Decoración-Flores-Regalos-Viaje'!$D46","v":{"v":-100,"d":"-100.00 "}}]
[null,"Habitaciones de hotel",{"v":0,"d":"0.00"},{"v":0,"d":"0.00"},{"$f":"'Decoración-Flores-Regalos-Viaje'!$C47-'Decoración-Flores-Regalos-Viaje'!$D47","v":{"v":0,"d":"0.00"}}]
[null,"Total de otros gastos",{"$f":"SUBTOTAL(109,OtrosGastos[ESTIMADOS])","v":{"v":885,"d":"885.00"}},{"$f":"SUBTOTAL(109,OtrosGastos[REAL])","v":{"v":1021,"d":"1,021.00"}},{"$f":"SUBTOTAL(109,OtrosGastos[DIFERENCIA])","v":{"v":-136,"d":"-136.00 "}}]